bitfinex-derivatives/quotes_SOLF0:USTF0_20241208
["timestamp","ask_amount","ask_price","bid_price","bid_amount"]
[1733635303733,1.92,237.86,237.73,1.3456]
[1733635303734,1.92,237.86,237.77,10.16244519]
[1733635304739,1.92,237.86,237.82,2.1007]
[1733635304942,1.92,237.86,237.77,10.16244519]
[1733635305339,1.92,237.86,237.56,23.36361765]
[1733635305340,10.16244519,237.82,237.55,4.2064]
[1733635305544,10.16244519,237.82,237.63,10.16244519]
[1733635305545,10.16244519,237.78,237.63,10.16244519]
[1733635305850,10.16244519,237.78,237.63,12.08244519]
[1733635306043,2.1014,237.76,237.71,2.1018]
[1733635306341,1.92,237.75,237.71,2.1018]
[1733635308246,1.92,237.75,237.74,2.1015]
[1733635308441,1.92,237.79,237.68,1.92]
[1733635308948,2.1014,237.76,237.7,2.1018]
[1733635309543,2.1014,237.76,237.64,3.2031]
[1733635309748,1.92,237.75,237.68,2.102]
[1733635309947,1.92,237.74,237.68,2.102]
[1733635310137,1.92,237.73,237.68,2.102]
[1733635310338,1.92,237.73,237.64,1.2831]
[1733635311238,1.92,237.73,237.7,2.1019]
[1733635311448,1.92,237.73,237.64,1.2831]
[1733635312244,1.92,237.73,237.71,2.1018]
[1733635313842,12.61,238.01,237.7,10.16244519]
[1733635314044,4.1982,238.02,237.77,10.16244519]
[1733635314045,10.16244519,237.91,237.77,10.16244519]
[1733635314343,1.92,237.9,237.77,10.16244519]
[1733635314545,1.92,237.9,237.74,10.16244519]
[1733635314546,10.16244519,237.88,237.74,10.16244519]
[1733635314742,10.16244519,237.88,237.71,2.7184]
[1733635314743,10.16244519,237.88,237.73,1.92]
[1733635316045,2.1005,237.86,237.79,2.101]
[1733635316242,1.92,237.85,237.79,2.101]
[1733635316940,4.0206,237.85,237.73,1.92]
[1733635318140,1.92,237.85,237.76,2.1013]
[1733635318343,2.1008,237.82,237.73,1.92]
[1733635318548,12.08244519,237.85,237.73,1.92]
[1733635319246,12.08244519,237.85,237.71,11.54414519]
[1733635320051,2.1008,237.83,237.71,11.54414519]
[1733635320646,2.1008,237.83,237.78,2.1012]
[1733635321349,14.18304519,237.85,237.79,2.101]
[1733635321550,12.08244519,237.85,237.79,2.101]
[1733635322650,2.1006,237.84,237.79,2.101]
[1733635322851,1.92,237.83,237.79,2.101]
[1733635323057,1.2668,237.89,237.71,11.54414519]
[1733635323058,10.16244519,237.88,237.75,1.92]
[1733635323246,1.2668,237.89,237.77,10.16244519]
[1733635323247,1.92,237.87,237.77,10.16244519]
[1733635323556,3.1868,237.89,237.77,10.16244519]
[1733635323852,3.1868,237.89,237.8,10.16244519]
[1733635324153,3.1868,237.89,237.87,2.1003]
[1733635325048,1.92,237.91,237.9,2.1001]
[1733635325256,1.92,237.91,237.8,12.08244519]
[1733635325554,1.92,237.91,237.9,2.1001]
[1733635325855,1.92,237.91,237.8,12.08244519]
[1733635326050,1.92,237.91,237.83,10.16244519]
[1733635326352,1.92,237.91,237.89,2.1001]
[1733635326655,1.92,237.91,237.83,10.16244519]
[1733635326853,1.92,237.95,237.91,2.1]
[1733635327452,1.92,237.98,237.93,2.0998]
[1733635328444,4.0194,237.98,237.93,2.0998]
[1733635328647,12.08244519,237.98,237.9,2.1001]
[1733635329052,12.08244519,237.98,237.85,1.92]
[1733635329242,12.08244519,237.98,237.91,2.1]
[1733635329243,2.0996,237.97,237.91,2.1]
[1733635329654,12.08244519,237.98,237.91,2.1]
[1733635330545,2.0995,237.97,237.92,2.0999]
[1733635332351,2.0995,237.97,237.86,10.16244519]
[1733635333657,2.0995,237.97,237.92,2.0999]
[1733635336249,2.0996,237.96,237.92,2.0999]
[1733635336550,1.92,237.98,237.89,2.1002]
[1733635336857,2.0998,237.94,237.89,2.1002]
[1733635337157,1.94,237.93,237.85,2.1005]
[1733635337352,1.94,237.93,237.81,3.2112]
[1733635337750,2.1,237.92,237.87,2.1003]
[1733635337952,1.94,237.93,237.81,3.2112]
[1733635338152,1.94,237.93,237.81,1.2712]
[1733635338951,10.16244519,237.92,237.7,1.68149903]
[1733635339156,11.51304519,237.92,237.76,11.51744519]
[1733635339549,2.1004,237.87,237.82,2.1007]
[1733635339862,1.94,237.86,237.82,2.1007]
[1733635340059,1.94,237.86,237.79,10.16244519]
[1733635340355,1.94,237.9,237.82,10.16244519]
[1733635340560,1.94,237.92,237.82,10.16244519]
[1733635340759,1.94,237.92,237.86,2.1004]
[1733635340760,2.1,237.91,237.86,2.1004]
[1733635342158,4.0399,237.92,237.87,2.1003]
[1733635342656,1.94,237.92,237.87,2.1003]
[1733635343256,2.1002,237.89,237.85,2.1005]
[1733635343456,1.94,237.92,237.8,1.94]
[1733635343657,1.94,237.92,237.79,10.16244519]
[1733635343858,2.1006,237.85,237.77,1.94]
[1733635344365,2.1006,237.85,237.79,2.101]
[1733635344556,2.1006,237.85,237.77,1.94]
[1733635344758,2.1005,237.86,237.77,1.94]
[1733635345462,2.1007,237.84,237.8,2.1009]
[1733635345858,1.94,237.87,237.76,1.355]
[1733635346057,2.1008,237.83,237.78,2.1011]
[1733635346257,12.10244519,237.87,237.72,10.16244519]
[1733635346458,10.16244519,237.84,237.72,10.16244519]
[1733635346760,10.16244519,237.81,237.66,12.10244519]
[1733635347163,2.1014,237.76,237.7,2.1018]
[1733635348059,1.94,237.77,237.63,1.266]
[1733635348261,1.94,237.77,237.63,11.42844519]
[1733635348964,1.94,237.77,237.66,10.16244519]
[1733635349156,1.94,237.77,237.67,4.04375731]
[1733635349361,1.94,237.77,237.69,10.16244519]
[1733635349564,1.94,237.77,237.71,2.1017]
[1733635349755,1.94,237.77,237.69,10.16244519]
[1733635350159,1.94,237.77,237.75,2.1014]
[1733635351666,1.94,237.77,237.69,10.16244519]
[1733635353366,1.94,237.77,237.74,2.1015]
[1733635353567,2.1011,237.8,237.74,2.1015]
[1733635353763,1.94,237.79,237.74,2.1015]
[1733635354669,1.94,237.79,237.69,10.16244519]
[1733635354974,2.1012,237.78,237.73,2.1016]
[1733635357272,2.1012,237.78,237.74,2.1015]
[1733635360769,1.94,237.79,237.74,2.1015]
[1733635361171,1.94,237.79,237.69,10.16244519]
[1733635361372,2.1013,237.77,237.72,2.1017]
[1733635361772,1.94,237.79,237.72,2.1017]
[1733635362075,2.1013,237.77,237.72,2.1017]
[1733635362771,2.1013,237.77,237.73,2.1016]
[1733635362968,2.1013,237.76,237.67,2.10375731]
[1733635363280,1.94,237.79,237.7,2.1018]
[1733635363671,10.16244519,237.77,237.7,2.1018]
[1733635364074,2.1015,237.75,237.7,2.1018]
[1733635364275,1.92,237.74,237.7,2.1018]
[1733635365171,12.08244519,237.74,237.34,175.48631861]
[1733635365374,10.16244519,237.71,237.59,1.92]
[1733635365980,10.16244519,237.68,237.54,3.9087]
[1733635366173,10.16244519,237.65,237.54,2.5605]
[1733635366570,2.1025,237.63,237.57,2.103]
[1733635366772,1.92,237.62,237.54,2.5605]
[1733635367180,2.1027,237.61,237.51,1.92]
[1733635367583,2.1027,237.61,237.54,2.1032]
[1733635367777,2.1028,237.6,237.48,12.72294519]
[1733635367977,2.1028,237.6,237.49,4.0253518]
[1733635368477,2.1029,237.58,237.53,2.1034]
[1733635368677,2.1029,237.58,237.49,2.1053518]
[1733635369581,2.1029,237.58,237.52,2.1034]
[1733635369885,1.92,237.57,237.52,2.1034]
[1733635370472,1.92,237.57,237.53,2.1033]
[1733635373382,1.92,237.57,237.49,2.1053518]
[1733635373775,2.1031,237.56,237.5,2.1035]
[1733635373978,2.1031,237.56,237.49,2.1053518]
[1733635375583,2.1031,237.56,237.51,2.1035]
[1733635375983,10.16244519,237.56,237.49,2.1053518]
[1733635376382,2.6709,237.55,237.49,2.1053518]
[1733635376784,2.1036,237.51,237.49,2.1053518]
[1733635376975,1.92,237.5,237.49,2.1053518]
[1733635378190,1.92,237.5,237.49,0.0070518]
[1733635378191,4.0236,237.5,237.49,0.0070518]
[1733635378487,4.0236,237.5,237.44,2.1041]
[1733635379080,2.6709,237.55,237.38,10.16244519]
[1733635379287,1.92,237.54,237.41,10.16244519]
[1733635379685,4.0233,237.54,237.48,2.1037]
[1733635379882,10.16244519,237.53,237.39,10.16244519]
[1733635380283,2.1037,237.5,237.39,10.16244519]
[1733635380478,1.94,237.49,237.39,10.16244519]
[1733635380783,2.1034,237.54,237.49,2.1037]
[1733635380979,10.16244519,237.57,237.42,10.16244519]
[1733635381186,1.94,237.56,237.45,10.16244519]
[1733635381893,1.94,237.56,237.43,1.2596]
[1733635382683,10.16244519,237.54,237.43,1.2596]
[1733635383084,10.16244519,237.54,237.24,10.16244519]
[1733635383085,10.16244519,237.54,237.38,10.16244519]
[1733635383388,1.94,237.58,237.44,10.16244519]
[1733635383789,1.94,237.58,237.47,10.16244519]
[1733635385285,1.94,237.58,237.26,12.15820441]
[1733635385487,10.16244519,237.56,237.42,10.16244519]
[1733635385690,1.94,237.58,237.43,1.2926]
[1733635386091,2.1031,237.56,237.51,2.1035]
[1733635386287,1.94,237.58,237.43,1.2926]
[1733635386789,1.94,237.58,237.52,2.1034]
[1733635386790,2.1031,237.57,237.52,2.1034]
[1733635386985,1.94,237.58,237.45,10.16244519]
[1733635387393,2.1032,237.55,237.5,2.1036]
[1733635388187,1.94,237.54,237.45,10.16244519]
[1733635388388,10.16244519,237.62,237.46,2.6584]
[1733635388389,1.94,237.57,237.46,2.6584]
[1733635388793,1.94,237.57,237.51,2.1035]
[1733635388794,4.043,237.57,237.51,2.1035]
[1733635389089,1.94,237.57,237.46,2.6584]
[1733635389391,2.1033,237.54,237.46,2.6584]
[1733635389783,1.94,237.57,237.46,2.6584]
[1733635389984,2.1032,237.56,237.51,2.1035]
[1733635390187,1.94,237.57,237.51,2.1035]
[1733635391193,2.1031,237.56,237.51,2.1035]
[1733635391691,2.1031,237.56,237.52,2.1035]
[1733635392585,10.16244519,237.62,237.46,2.6584]
[1733635392793,10.16244519,237.65,237.51,10.16244519]
[1733635392986,12.18244519,237.65,237.52,1.3316]
[1733635393185,10.16244519,237.65,237.52,1.3316]
[1733635393395,2.02,237.64,237.53,2.02]
[1733635393595,2.102,237.69,237.54,10.16244519]
[1733635393790,2.102,237.69,237.53,2.02]
[1733635393791,2.02,237.68,237.57,10.16244519]
[1733635394296,4.122,237.68,237.62,2.1025]
[1733635395392,2.1019,237.7,237.65,2.1023]
[1733635395598,10.16244519,237.77,237.63,10.16244519]
[1733635395893,2.02,237.75,237.64,1.3316]
[1733635396093,2.02,237.75,237.7,2.1018]
[1733635396296,2.02,237.75,237.65,2.02]
[1733635396496,2.02,237.75,237.65,3.4089]
[1733635397393,2.02,237.75,237.65,4.6856]
[1733635397697,2.02,237.75,237.57,5.93376982]
[1733635397893,2.02,237.75,237.62,10.16244519]
[1733635398094,2.02,237.75,237.63,3.2967]
[1733635399798,12.26394519,237.74,237.67,2.1021]
[1733635399991,10.16244519,237.71,237.58,2.02]
[1733635400197,2.02,237.7,237.57,2.7189]
[1733635400399,2.02,237.7,237.64,2.1024]
[1733635400795,2.02,237.7,237.59,1.3829]
[1733635401000,2.02,237.7,237.59,3.4029]
[1733635401298,2.02,237.7,237.59,1.3829]
[1733635401299,10.16244519,237.68,237.59,1.3829]
[1733635401896,2.1023,237.65,237.59,2.1028]
[1733635402092,2.1023,237.65,237.57,2.7189]
[1733635402093,12.18244519,237.65,237.57,2.7189]
[1733635402399,2.1026,237.63,237.57,2.103]
[1733635402599,2.02,237.65,237.53,10.16244519]
[1733635403202,2.02,237.65,237.6,2.1027]
[1733635403706,2.02,237.65,237.53,10.16244519]
[1733635404098,2.02,237.65,237.56,10.16244519]
[1733635405396,4.1223,237.65,237.6,2.1027]
[1733635406398,2.02,237.65,237.61,2.1027]
[1733635407197,2.02,237.65,237.56,10.16244519]
[1733635407398,2.02,237.65,237.62,2.1025]
[1733635407602,2.02,237.65,237.57,2.02]
[1733635407996,2.02,237.69,237.57,2.02]
[1733635408194,2.02,237.69,237.59,10.16244519]
[1733635408400,2.02,237.69,237.6,1.36]
[1733635408614,2.02,237.69,237.6,2.6961]
[1733635409802,2.02,237.69,237.64,2.1024]
[1733635410305,2.02,237.69,237.65,2.1023]
[1733635410505,2.1014,237.75,237.63,12.18244519]
[1733635410805,2.02,237.8,237.66,10.16244519]
[1733635411006,11.42194519,237.83,237.69,10.16244519]
[1733635411305,2.02,237.82,237.69,10.16244519]
[1733635412203,2.02,237.82,237.69,11.50554519]
[1733635413009,2.1009,237.81,237.69,11.50554519]
[1733635413206,12.71834519,237.88,237.72,10.16244519]
[1733635413399,2.02,237.87,237.73,4.6424]
[1733635414801,10.16244519,237.85,237.73,4.6424]
[1733635415199,10.16244519,237.86,237.73,4.6424]
[1733635415399,2.1006,237.85,237.73,4.6424]
[1733635415606,12.18244519,237.87,237.73,4.6424]
[1733635416804,10.16244519,237.84,237.73,4.6424]
[1733635417198,10.16244519,237.84,237.73,2.6224]
[1733635417710,2.101,237.8,237.75,2.1014]
[1733635418106,2.02,237.81,237.69,11.50554519]
[1733635418107,12.18244519,237.81,237.69,1.3431]
[1733635418905,2.1013,237.77,237.71,2.1017]
[1733635419105,2.1013,237.77,237.69,1.3431]
[1733635419311,12.18244519,237.81,237.69,1.3431]
[1733635419810,2.1011,237.79,237.73,2.1015]
[1733635420006,2.02,237.81,237.69,1.3431]
[1733635420505,2.101,237.8,237.69,1.3431]
[1733635421210,2.101,237.8,237.75,2.1014]
[1733635423612,4.1209,237.81,237.76,2.1013]
[1733635424314,2.02,237.81,237.76,2.1013]
[1733635424504,2.101,237.8,237.76,2.1013]
[1733635424907,2.101,237.8,237.74,2.1014]
[1733635425104,2.1014,237.76,237.69,1.3431]
[1733635425311,12.18244519,237.81,237.69,1.3431]
[1733635425519,12.18244519,237.81,237.7,2.1018]
[1733635425810,12.18244519,237.81,237.69,1.3431]
[1733635426005,12.18244519,237.81,237.72,2.1017]
[1733635426906,2.1013,237.77,237.72,2.1017]
[1733635427211,12.18244519,237.81,237.69,1.3431]
[1733635427212,10.16244519,237.81,237.69,1.3431]
[1733635427403,4.65780011,237.88,237.71,10.16244519]
[1733635427404,10.16244519,237.84,237.71,10.16244519]
[1733635427910,2.1009,237.82,237.76,2.1013]
[1733635428310,2.0,237.81,237.72,3.4063]
[1733635428512,2.1011,237.79,237.72,2.1016]
[1733635428816,12.16244519,237.81,237.7,1.311]
[1733635429611,2.0,237.81,237.7,1.311]
[1733635430915,2.101,237.8,237.75,2.1014]
[1733635432715,2.1011,237.79,237.75,2.1014]
[1733635433718,2.1012,237.78,237.74,2.1015]
[1733635433907,2.0,237.81,237.7,1.311]
[1733635434306,12.16244519,237.81,237.69,1.3431]
[1733635434508,2.1014,237.75,237.71,2.1018]
[1733635434715,12.16244519,237.81,237.71,2.1018]
[1733635434915,2.1015,237.74,237.7,2.1019]
[1733635436013,2.0,237.76,237.67,10.16244519]
[1733635436512,2.0,237.76,237.7,10.16244519]
[1733635437413,2.0,237.76,237.74,2.1015]
[1733635438113,2.0,237.81,237.73,10.16244519]
[1733635438411,11.49904519,237.87,237.73,10.16244519]
[1733635438618,2.0,237.86,237.73,10.16244519]
[1733635438811,2.0,237.86,237.74,1.2867]
[1733635439009,2.0,237.86,237.76,10.16244519]
[1733635439214,10.16244519,237.9,237.76,10.16244519]
[1733635439417,9.35339397,237.87,237.76,10.16244519]
[1733635439718,4.1004,237.87,237.81,2.1008]
[1733635440110,10.16244519,237.93,237.79,10.16244519]
[1733635440307,2.10190011,237.88,237.79,10.16244519]
[1733635440512,2.10190011,237.88,237.82,10.16244519]
[1733635440719,2.10190011,237.88,237.87,2.1004]
[1733635442811,2.10190011,237.88,237.82,10.16244519]
[1733635443109,2.10190011,237.88,237.75,1.05102525]
[1733635443311,2.10190011,237.88,237.75,2.0]
[1733635443511,2.10190011,237.88,237.76,10.16244519]
[1733635443512,4.1004,237.87,237.76,10.16244519]
[1733635445718,4.1004,237.87,237.79,2.101]
[1733635446113,2.0,237.87,237.76,10.16244519]
[1733635446314,2.1007,237.84,237.77,2.1012]
[1733635446518,2.0,237.87,237.76,10.16244519]
[1733635447017,2.1006,237.84,237.76,10.16244519]
[1733635447221,2.0,237.87,237.76,10.16244519]
[1733635447618,2.1005,237.86,237.79,2.101]
[1733635449224,2.1005,237.86,237.8,2.101]
[1733635450720,2.0,237.87,237.8,2.101]
[1733635451014,2.0,237.87,237.76,10.16244519]
[1733635451220,2.0,237.87,237.75,2.0]
[1733635451420,2.1007,237.84,237.76,2.1013]
[1733635451622,2.0,237.87,237.76,2.1013]
[1733635451825,12.16244519,237.87,237.74,1.2867]
[1733635452128,10.16244519,237.84,237.71,4.6146]
[1733635452322,7.3517864,237.83,237.71,4.6146]
[1733635452620,9.3517864,237.82,237.71,4.6146]
[1733635452822,2.0,237.82,237.71,4.6146]
[1733635453025,2.0,237.82,237.71,1.3188]
[1733635453220,2.0,237.82,237.67,10.16244519]
[1733635453221,10.16244519,237.81,237.67,10.16244519]
[1733635453529,2.1015,237.74,237.69,2.1019]
[1733635453716,2.0,237.77,237.67,10.16244519]
[1733635454628,4.1013,237.77,237.71,2.1017]
[1733635455017,2.0,237.77,237.67,10.16244519]
[1733635455218,2.1012,237.79,237.7,10.16244519]
[1733635455427,2.0,237.82,237.73,10.16244519]
[1733635455627,2.0,237.84,237.73,10.16244519]
[1733635455920,10.16244519,237.9,237.73,10.16244519]
[1733635456121,9.36997998,237.89,237.76,10.16244519]
[1733635456326,9.36997998,237.89,237.74,1.3516]
[1733635456327,9.36997998,237.88,237.79,10.16244519]
[1733635456627,3.9435,237.95,237.82,2.1008]
[1733635456628,2.1004,237.87,237.82,2.1008]
[1733635457125,2.1004,237.87,237.79,10.16244519]
[1733635457319,2.1004,237.87,237.8,2.1009]
[1733635459225,2.0,237.9,237.78,2.1011]
[1733635459424,7.37113101,237.89,237.78,2.1011]
[1733635459623,7.37113101,237.88,237.78,2.1011]
[1733635459824,10.16244519,237.89,237.76,12.26374519]
[1733635460129,7.37115553,237.88,237.76,10.16244519]
[1733635460328,10.16244519,237.89,237.76,10.16244519]
[1733635460527,7.37107153,237.88,237.76,10.16244519]
[1733635460733,10.16244519,237.89,237.76,10.16244519]
[1733635461029,7.37106675,237.88,237.76,10.16244519]
[1733635461226,10.16244519,237.89,237.78,2.1011]
[1733635461431,7.37105604,237.88,237.78,2.1011]
[1733635461623,10.16244519,237.89,237.78,2.1011]
[1733635461927,2.0,237.9,237.76,10.16244519]
[1733635462327,2.1006,237.85,237.76,10.16244519]
[1733635462824,2.1006,237.85,237.8,2.1009]
[1733635463026,10.16244519,237.89,237.76,10.16244519]
[1733635464228,2.1007,237.83,237.78,2.1012]
[1733635465527,2.0,237.85,237.76,2.1013]
[1733635466129,2.1009,237.82,237.77,2.1012]
[1733635467836,2.1009,237.81,237.77,2.1012]
[1733635470538,2.1008,237.83,237.78,2.1011]
[1733635470837,2.1008,237.83,237.76,10.16244519]
[1733635471233,2.1008,237.83,237.79,2.101]
[1733635472129,2.1008,237.82,237.78,2.1011]
[1733635473637,2.0,237.85,237.77,2.1012]
[1733635474439,2.1009,237.81,237.77,2.1012]
[1733635476941,2.0,237.85,237.76,10.16244519]
[1733635477141,2.0,237.85,237.77,2.1012]
[1733635477142,2.1009,237.81,237.77,2.1012]
[1733635477539,2.1011,237.8,237.76,12.26374519]
[1733635478447,2.0,237.79,237.65,10.16244519]
[1733635478741,6.52338898,237.75,237.67,6.52338898]
[1733635478944,2.1018,237.71,237.69,6.52338898]
[1733635479741,2.1017,237.73,237.69,6.52338898]
[1733635480550,2.1017,237.73,237.65,10.19337608]
[1733635480744,2.1017,237.72,237.67,2.1021]
[1733635484349,2.1019,237.7,237.65,2.1022]
[1733635484550,2.0,237.74,237.65,2.1022]
[1733635485654,2.1019,237.7,237.65,2.1022]
[1733635485846,10.19337608,237.77,237.69,2.1019]
[1733635486050,2.0,237.76,237.65,10.19337608]
[1733635486251,2.0,237.75,237.65,10.19337608]
[1733635486452,2.0,237.78,237.73,2.1016]
[1733635487545,4.1012,237.78,237.73,2.1016]
[1733635487943,2.0,237.81,237.74,10.19337608]
[1733635488146,4.1009,237.81,237.74,10.19337608]
[1733635488853,2.0,237.81,237.74,10.19337608]
[1733635490047,3.8949,237.95,237.74,10.19337608]
[1733635490251,10.19337608,237.91,237.77,10.19337608]
[1733635490450,7.37069734,237.9,237.77,10.19337608]
[1733635490653,2.0,237.89,237.77,10.19337608]
[1733635490852,7.37069734,237.88,237.77,10.19337608]
[1733635491457,2.1005,237.86,237.8,2.101]
[1733635491755,2.1005,237.86,237.77,10.19337608]
[1733635491952,2.0,237.87,237.75,2.0]
[1733635492648,10.19337608,237.86,237.71,14.12227608]
[1733635492850,7.37120341,237.85,237.71,14.12227608]
[1733635493061,10.19337608,237.86,237.71,14.12227608]
[1733635493062,2.1011,237.79,237.71,14.12227608]
[1733635493351,2.0,237.81,237.71,3.9289]
[1733635493557,2.0,237.8,237.71,3.9289]
[1733635494547,2.1011,237.79,237.74,2.1015]
[1733635496049,2.1012,237.78,237.74,2.1015]
[1733635496954,2.1013,237.77,237.73,2.1016]
[1733635499361,10.19337608,237.77,237.63,4.0684]
[1733635500356,10.19337608,237.77,237.6,12.19337608]
[1733635500571,2.6692,237.76,237.6,10.19337608]
[1733635500867,2.0,237.75,237.6,10.19337608]
[1733635501058,2.1019,237.7,237.65,2.1023]
[1733635501659,2.0,237.79,237.56,4.0247]
[1733635501856,2.0,237.78,237.66,10.19337608]
[1733635502057,2.0,237.78,237.69,10.19337608]
[1733635502459,2.0,237.8,237.72,10.19337608]
[1733635502962,2.1009,237.81,237.72,10.19337608]
[1733635504659,2.1009,237.81,237.76,2.1013]
[1733635505061,2.101,237.8,237.76,2.1013]
[1733635505263,2.101,237.8,237.72,10.19337608]
[1733635505466,2.101,237.8,237.75,2.1014]
[1733635506163,2.1015,237.74,237.69,2.1019]
[1733635506369,2.1015,237.74,237.67,3.919]
[1733635506859,2.0,237.76,237.67,3.919]
[1733635507165,2.1014,237.75,237.7,2.1018]
[1733635507557,2.1015,237.74,237.7,2.1018]
[1733635507963,2.0,237.76,237.67,2.1021]
[1733635508166,2.1018,237.71,237.67,2.1021]
[1733635508667,4.1018,237.71,237.67,2.1021]
[1733635508964,4.1018,237.71,237.62,12.19337608]
[1733635508965,2.1019,237.7,237.66,2.1022]
[1733635511866,10.19337608,237.77,237.62,12.19337608]
[1733635512070,2.6228,237.79,237.65,10.19337608]
[1733635512262,9.41273124,237.78,237.65,10.19337608]
[1733635512463,2.04,237.78,237.65,10.19337608]
[1733635512663,4.2001,237.91,237.71,10.19337608]
[1733635512867,9.41346709,237.84,237.71,10.19337608]
[1733635513066,2.04,237.84,237.71,10.19337608]
[1733635513368,2.1011,237.8,237.71,10.19337608]
[1733635514065,2.1011,237.8,237.71,12.23337608]
[1733635514274,12.23337608,237.83,237.71,2.04]
[1733635514667,12.23337608,237.83,237.73,2.1016]
[1733635515064,10.19337608,237.8,237.66,2.707]
[1733635515267,10.19337608,237.8,237.7,2.1018]
[1733635515569,10.19337608,237.8,237.67,2.04]
[1733635515965,10.19337608,237.8,237.7,2.1018]
[1733635516166,10.19337608,237.8,237.67,2.04]
[1733635516672,10.19337608,237.77,237.66,2.707]
[1733635516874,2.04,237.76,237.66,2.707]
[1733635517270,2.04,237.76,237.67,2.1021]
[1733635517271,2.1018,237.71,237.67,2.1021]
[1733635517471,2.04,237.76,237.67,2.1021]
[1733635517967,2.1017,237.72,237.67,2.1021]
[1733635519375,2.1017,237.72,237.68,2.102]
[1733635520569,2.1016,237.74,237.69,2.1019]
[1733635521075,2.04,237.76,237.69,2.1019]
[1733635521475,10.19337608,237.77,237.69,2.1019]
[1733635521778,2.04,237.76,237.69,2.1019]
[1733635521972,2.1017,237.73,237.69,2.1019]
[1733635522169,10.19337608,237.74,237.65,2.1022]
[1733635522375,10.19337608,237.71,237.55,2.6634]
[1733635522680,10.19337608,237.68,237.57,2.1029]
[1733635522875,2.04,237.67,237.55,14.89677608]
[1733635523273,2.04,237.67,237.49,1.3391]
[1733635523475,10.19337608,237.63,237.5,3.73290748]
[1733635523677,10.19337608,237.63,237.49,1.3391]
[1733635523678,2.04,237.62,237.49,1.3391]
[1733635523878,2.1031,237.56,237.5,2.1036]
[1733635525178,2.103,237.57,237.48,1.3488]
[1733635525379,2.103,237.57,237.51,2.1035]
[1733635525786,4.1429,237.59,237.51,2.1035]
[1733635525981,4.1429,237.59,237.48,1.3488]
[1733635526987,2.04,237.59,237.48,1.3488]
[1733635527283,12.23337608,237.59,237.47,2.04]
[1733635527488,2.1032,237.55,237.47,2.1039]
[1733635527683,12.23337608,237.59,237.47,2.1039]
[1733635528082,2.1033,237.54,237.44,12.23337608]
[1733635529484,2.1033,237.54,237.48,2.1038]
[1733635529679,2.04,237.59,237.47,10.19337608]
[1733635531583,2.103,237.57,237.51,2.1035]
[1733635531787,2.103,237.57,237.47,10.19337608]
[1733635531981,3.3946,237.6,237.47,10.19337608]
[1733635532291,3.3946,237.6,237.53,2.1034]
[1733635532484,3.3448,237.61,237.5,10.19337608]
[1733635532884,4.1427,237.61,237.56,2.1031]
[1733635533086,4.1427,237.61,237.53,10.19337608]
[1733635533087,2.04,237.61,237.53,10.19337608]
[1733635533385,12.88567608,237.68,237.61,2.1026]
[1733635533386,4.7323,237.68,237.61,2.1026]
[1733635533889,2.1022,237.66,237.61,2.1026]
[1733635535486,4.1421,237.68,237.62,2.1026]
[1733635535988,2.1021,237.67,237.57,2.04]
[1733635537492,2.04,237.68,237.57,2.04]
[1733635537686,2.1022,237.66,237.6,2.1027]
[1733635538584,12.23337608,237.68,237.54,2.04]
[1733635538789,10.19337608,237.65,237.54,2.04]
[1733635539684,10.19337608,237.65,237.55,2.1031]
[1733635540186,2.1027,237.61,237.55,2.1031]
[1733635540588,2.04,237.62,237.55,2.1031]
[1733635540788,2.1028,237.6,237.55,2.1031]
[1733635541584,2.1028,237.6,237.52,2.6828]